bitfinex/quotes_BTCUSD_20250219
["timestamp","ask_amount","ask_price","bid_price","bid_amount"]
[1739992844637,0.01608416,96184.0,96160.0,0.39292693]
[1739992847615,0.0086,96212.0,96160.0,0.55746778]
[1739992847760,0.01675603,96193.0,96160.0,0.55746778]
[1739992848494,9e-07,96161.0,96160.0,0.55746778]
[1739992848717,9e-07,96161.0,96160.0,0.56633089]
[1739992850852,9e-07,96161.0,96160.0,0.55179004]
[1739992852174,9e-07,96161.0,96160.0,0.54292693]
[1739992853178,9e-07,96161.0,96160.0,0.39292693]
[1739992855424,9e-07,96161.0,96160.0,0.54292693]
[1739992856142,9e-07,96161.0,96160.0,0.55746778]
[1739992856376,0.012667,96229.0,96173.0,0.429068]
[1739992856377,0.0210341,96217.0,96173.0,0.429068]
[1739992856590,0.00055574,96174.0,96173.0,0.5461125]
[1739992857393,0.00055574,96174.0,96173.0,0.53157165]
[1739992857592,0.00055574,96174.0,96173.0,0.53847165]
[1739992858171,0.00055574,96174.0,96173.0,0.53600493]
[1739992858821,0.207852,96222.0,96174.0,0.15]
[1739992859020,0.155927,96199.0,96184.0,0.207934]
[1739992859273,0.155927,96199.0,96186.0,0.155947]
[1739992859474,0.0688,96221.0,96185.0,0.10250365]
[1739992859693,0.155928,96198.0,96185.0,0.25845065]
[1739992859861,1.207979,96220.0,96185.0,0.09680365]
[1739992860022,0.155931,96197.0,96185.0,0.25275165]
[1739992860222,0.155931,96197.0,96186.0,0.155947]
[1739992860458,0.01454085,96218.0,96174.0,0.00553328]
[1739992860661,0.08860807,96217.0,96175.0,0.10250365]
[1739992860876,0.01454085,96214.0,96174.0,0.00553328]
[1739992861082,0.155947,96186.0,96174.0,0.10803693]
[1739992861284,0.155943,96189.0,96176.0,0.155963]
[1739992861990,0.207897,96202.0,96174.0,0.10803693]
[1739992862192,0.008425,96226.0,96174.0,0.10803693]
[1739992862375,0.155939,96191.0,96177.0,0.15596]
[1739992862576,0.155943,96189.0,96174.0,0.31045865]
[1739992862775,0.155944,96189.0,96177.0,0.155961]
[1739992863114,0.155938,96192.0,96180.0,0.155957]
[1739992863297,0.02128298,96206.0,96174.0,0.10250365]
[1739992863495,0.15592,96203.0,96175.0,0.10250365]
[1739992863698,0.02128298,96206.0,96177.0,0.207949]
[1739992863901,0.155927,96199.0,96189.0,0.155942]
[1739992864100,0.02128298,96206.0,96179.0,0.207945]
[1739992864299,0.15,96203.0,96178.0,0.10250365]
[1739992864586,0.155925,96200.0,96189.0,0.155942]
[1739992864767,0.15,96203.0,96178.0,0.31044965]
[1739992864768,0.155935,96194.0,96180.0,0.207941]
[1739992864939,0.20791,96196.0,96178.0,0.10250365]
[1739992865160,0.155934,96195.0,96185.0,0.155948]
[1739992865473,0.15,96211.0,96191.0,0.155938]
[1739992865678,0.07433791,96211.0,96179.0,0.207945]
[1739992865879,0.07433791,96211.0,96188.0,0.155943]
[1739992866055,0.155928,96198.0,96188.0,0.155943]
[1739992866457,0.155928,96198.0,96188.0,0.155944]
[1739992866967,0.155926,96200.0,96189.0,0.155942]
[1739992867147,0.155927,96199.0,96189.0,0.155942]
[1739992867897,0.155928,96198.0,96190.0,0.15594]
[1739992868148,0.207899,96201.0,96190.0,0.15594]
[1739992868149,0.155927,96199.0,96190.0,0.15594]
[1739992868331,0.15,96208.0,96184.0,0.207933]
[1739992868518,0.15,96208.0,96175.0,0.00554338]
[1739992868519,0.26821307,96207.0,96175.0,0.00554338]
[1739992868722,0.014,96203.0,96175.0,0.00554338]
[1739992868921,0.15,96201.0,96175.0,0.00554338]
[1739992869130,0.207904,96198.0,96175.0,0.00554338]
[1739992869326,0.15,96199.0,96175.0,0.00554338]
[1739992869834,0.00796,96219.0,96175.0,0.00554338]
[1739992869835,0.014,96214.0,96178.0,0.0471]
[1739992870060,0.207876,96211.0,96179.0,0.10250365]
[1739992870248,0.07466209,96211.0,96179.0,0.10250365]
[1739992870569,0.07466209,96211.0,96192.0,0.155937]
[1739992870570,0.15592,96203.0,96192.0,0.155937]
[1739992870774,0.207878,96210.0,96180.0,0.207943]
[1739992870982,0.31692,96210.0,96186.0,0.207928]
[1739992871185,0.155928,96199.0,96189.0,0.155942]
[1739992871393,0.207878,96210.0,96187.0,0.207927]
[1739992871604,0.207882,96208.0,96186.0,0.155947]
[1739992871817,0.155932,96196.0,96186.0,0.14992993]
[1739992872019,0.207897,96202.0,96186.0,0.14992993]
[1739992872020,0.15593,96197.0,96186.0,0.14992993]
[1739992872235,0.15593,96197.0,96187.0,0.155945]
[1739992872816,0.15593,96197.0,96186.0,0.155946]
[1739992872980,0.15593,96197.0,96184.0,0.207934]
[1739992873197,0.155933,96195.0,96185.0,0.155947]
[1739992873410,0.07466209,96211.0,96165.0,0.207975]
[1739992873626,0.155941,96190.0,96180.0,0.155957]
[1739992873869,0.07468911,96210.0,96181.0,0.155955]
[1739992874074,0.15,96208.0,96169.0,0.207966]
[1739992874280,0.00043471,96213.0,96178.0,0.10250365]
[1739992874453,0.00043471,96213.0,96198.0,0.155927]
[1739992874454,0.155907,96212.0,96198.0,0.155927]
[1739992874660,0.00043471,96213.0,96191.0,0.0484]
[1739992874867,0.155918,96204.0,96191.0,0.0484]
[1739992875060,0.20830671,96213.0,96191.0,0.0484]
[1739992875259,0.155921,96203.0,96191.0,0.0484]
[1739992875515,0.15592,96203.0,96192.0,0.155938]
[1739992875704,0.15592,96203.0,96191.0,0.204339]
[1739992875882,0.15,96212.0,96191.0,0.204339]
[1739992876284,0.15,96212.0,96191.0,0.0484]
[1739992876543,0.155917,96205.0,96195.0,0.155932]
[1739992876730,0.00043471,96213.0,96191.0,0.0484]
[1739992876913,0.104714,96212.0,96191.0,0.0484]
[1739992877148,0.155921,96203.0,96191.0,0.204338]
[1739992877357,0.155921,96203.0,96191.0,0.0484]
[1739992877561,0.00043471,96213.0,96191.0,0.0484]
[1739992877891,0.155923,96202.0,96191.0,0.0484]
[1739992878294,0.00043471,96213.0,96191.0,0.0484]
[1739992878497,0.15,96211.0,96191.0,0.0484]
[1739992878701,0.07433791,96211.0,96191.0,0.0484]
[1739992878902,0.20788,96209.0,96191.0,0.0476]
[1739992879103,0.155922,96202.0,96191.0,0.0476]
[1739992879949,0.155923,96201.0,96191.0,0.0476]
[1739992880452,0.00043471,96213.0,96192.0,0.0827]
[1739992880565,0.00043471,96213.0,96200.0,0.155923]
[1739992880758,0.00043471,96213.0,96192.0,0.18520365]
[1739992881211,0.155911,96209.0,96198.0,0.155928]
[1739992881770,0.155913,96207.0,96196.0,0.15593]
[1739992881976,0.155911,96209.0,96192.0,0.39311965]
[1739992882180,0.155911,96209.0,96197.0,0.155929]
[1739992882381,0.20788,96210.0,96194.0,0.207911]
[1739992882562,0.155914,96207.0,96196.0,0.15593]
[1739992882982,0.20788,96210.0,96197.0,0.155929]
[1739992883104,0.00043471,96213.0,96194.0,0.10250365]
[1739992883317,0.15591,96209.0,96198.0,0.155928]
[1739992883724,0.155914,96207.0,96196.0,0.15593]
[1739992883920,0.00043471,96213.0,96195.0,0.207911]
[1739992884115,0.15591,96210.0,96198.0,0.155928]
[1739992884319,0.00043471,96213.0,96212.0,0.155905]
[1739992884529,0.00043471,96213.0,96212.0,0.235605]
[1739992884732,0.00043471,96213.0,96212.0,0.0797]
[1739992885145,0.00043471,96213.0,96212.0,0.235605]
[1739992885975,0.00043471,96213.0,96212.0,0.281405]
[1739992886181,0.00043471,96213.0,96212.0,0.38390865]
[1739992888443,0.00043471,96213.0,96212.0,0.38945315]
[1739992889526,0.00085981,96213.0,96212.0,0.38945315]
[1739992892410,0.00085981,96213.0,96212.0,0.38390865]
[1739992894880,8.1e-07,96213.0,96212.0,0.38390865]
[1739992895088,8.1e-07,96213.0,96212.0,0.53390865]
[1739992895933,8.1e-07,96213.0,96212.0,0.53944484]
[1739992896869,0.15,96256.0,96245.0,0.15585]
[1739992897014,0.00013041,96250.0,96236.0,0.207822]
[1739992897219,0.00013041,96250.0,96249.0,0.155845]
[1739992898283,0.00013041,96250.0,96249.0,0.25834865]
[1739992899097,0.155807,96273.0,96250.0,0.207792]
[1739992899350,0.00013031,96279.0,96260.0,0.0456]
[1739992899566,0.00013031,96279.0,96261.0,0.207768]
[1739992899769,0.00013031,96279.0,96262.0,0.08323233]
[1739992899974,0.00013031,96279.0,96278.0,0.155798]
[1739992900924,0.00013031,96279.0,96277.0,0.155799]
[1739992901132,0.00013031,96279.0,96278.0,0.14770365]
[1739992901370,0.00013031,96279.0,96278.0,0.29770365]
[1739992903774,0.00013031,96279.0,96278.0,0.30623598]
[1739992906712,0.00013031,96279.0,96278.0,0.45623598]
[1739992906911,0.00013031,96279.0,96278.0,0.47859634]
[1739992907293,0.00013031,96279.0,96278.0,0.46405549]
[1739992907663,0.155735,96317.0,96303.0,0.155757]
[1739992908035,0.155736,96317.0,96295.0,0.15]
[1739992908184,0.155737,96316.0,96300.0,0.207683]
[1739992908367,0.155737,96316.0,96301.0,0.155761]
[1739992908565,0.01493898,96317.0,96291.0,0.0788]
[1739992908767,0.207627,96327.0,96292.0,0.10250365]
[1739992909034,0.20766,96312.0,96291.0,0.0788]
[1739992909350,0.155757,96304.0,96291.0,0.0788]
[1739992909505,0.155761,96302.0,96291.0,0.0788]
[1739992909710,0.20767,96307.0,96291.0,0.0788]
[1739992909927,0.01511079,96327.0,96286.0,0.15]
[1739992910115,2.635308,96325.0,96286.0,0.15]
[1739992910273,0.155766,96299.0,96286.0,0.15]
[1739992910480,0.155766,96299.0,96283.0,0.0787]
[1739992910481,0.01454085,96323.0,96283.0,0.0787]
[1739992910675,0.207682,96301.0,96285.0,0.15]
[1739992911341,0.01454085,96315.0,96290.0,0.155778]
[1739992911668,0.0004252,96399.0,96291.0,0.10250365]
[1739992911780,0.06880605,96322.0,96291.0,0.10250365]
[1739992911993,0.155741,96314.0,96291.0,0.10250365]
[1739992912221,0.06880605,96322.0,96297.0,0.155766]
[1739992912413,0.155743,96313.0,96291.0,0.10250365]
[1739992912613,0.207653,96315.0,96298.0,0.155766]
[1739992912816,0.155744,96312.0,96291.0,0.10250365]
[1739992913046,0.155744,96312.0,96299.0,0.155763]
[1739992913299,0.155745,96311.0,96299.0,0.155763]
[1739992913490,0.155745,96311.0,96291.0,0.10250365]
[1739992913708,0.06880605,96322.0,96291.0,0.10250365]
[1739992913943,0.00043455,96323.0,96307.0,0.08323233]
[1739992914161,0.00043455,96323.0,96322.0,0.305727]
[1739992914328,0.00043455,96323.0,96322.0,0.53953065]
[1739992914875,0.00043455,96323.0,96322.0,0.54773065]
[1739992916313,0.00043455,96323.0,96322.0,0.55322147]
[1739992918953,0.00043455,96323.0,96322.0,0.38929447]
[1739992919233,0.00043455,96323.0,96322.0,0.54502147]
[1739992919369,0.0004252,96347.0,96324.0,0.0782]
[1739992919577,0.0004252,96347.0,96346.0,0.61253116]
[1739992919815,0.00055548,96347.0,96346.0,0.62085116]
[1739992920221,0.00055548,96347.0,96346.0,0.72335481]
[1739992920877,0.00055548,96347.0,96346.0,0.39111165]
[1739992921966,0.00055548,96347.0,96346.0,0.54111165]
[1739992924560,0.00055548,96347.0,96346.0,0.54660247]
[1739992924761,4.8e-07,96347.0,96346.0,0.54660247]
[1739992924968,7e-05,96353.0,96352.0,0.428779]
[1739992924969,4.8e-07,96353.0,96352.0,0.428779]
[1739992925175,4.8e-07,96353.0,96352.0,0.61431628]
[1739992925519,0.0004252,96376.0,96362.0,0.155662]
[1739992925725,0.0004252,96376.0,96363.0,0.10250365]
[1739992926710,0.0004252,96376.0,96363.0,0.10799447]
[1739992926983,0.19579577,96373.0,96363.0,0.10799447]
[1739992927186,0.155648,96371.0,96363.0,0.00549082]
[1739992927387,0.19579577,96373.0,96363.0,0.00549082]
[1739992927388,0.169913,96364.0,96363.0,0.00549082]
[1739992927531,0.01944354,96364.0,96363.0,0.00549082]
[1739992928169,0.01944354,96364.0,96345.0,0.09329011]
[1739992928170,0.51260954,96364.0,96345.0,0.09329011]
[1739992928424,0.19579577,96355.0,96345.0,0.09329011]
[1739992928772,0.207572,96352.0,96345.0,0.09329011]
[1739992928972,0.155688,96347.0,96345.0,0.09329011]
[1739992929190,0.141218,96346.0,96345.0,0.09329011]
[1739992929392,0.2127195,96346.0,96345.0,0.09329011]
[1739992930314,0.1803215,96346.0,96345.0,0.09329011]
[1739992930703,0.1803215,96346.0,96312.0,0.046]
[1739992930918,0.155723,96325.0,96323.0,0.00098028]
[1739992931316,0.00501381,96324.0,96323.0,0.00098028]
[1739992932375,0.155719,96328.0,96323.0,0.00098028]
[1739992932590,0.00499276,96324.0,96323.0,0.00098028]
[1739992932785,0.207618,96331.0,96323.0,0.00098028]
[1739992933039,0.155724,96324.0,96323.0,0.00098028]
[1739992933244,0.288704,96324.0,96323.0,0.00098028]
[1739992933498,0.004862,96324.0,96323.0,0.00098028]
[1739992933865,0.01554931,96331.0,96323.0,0.00098028]
[1739992934085,0.19579577,96340.0,96326.0,0.207626]
[1739992934223,0.00472654,96330.0,96323.0,0.00098028]
[1739992934437,0.21071125,96340.0,96331.0,0.155712]
[1739992934646,0.21071125,96340.0,96332.0,0.15571]
[1739992934931,0.00471805,96339.0,96330.0,0.155713]
[1739992935232,0.00471805,96339.0,96323.0,0.00098028]
[1739992935443,0.00471805,96339.0,96338.0,0.155701]
[1739992935649,0.01537299,96347.0,96340.0,0.155697]
[1739992935855,0.01537299,96347.0,96331.0,0.08303363]
[1739992935974,0.207602,96338.0,96329.0,0.0499]
[1739992936179,0.19579577,96341.0,96324.0,0.0794]
[1739992936379,0.0046457,96337.0,96330.0,0.155713]
[1739992936580,0.155696,96342.0,96330.0,0.155713]
[1739992936802,0.00470029,96336.0,96326.0,0.155719]
[1739992937039,0.155705,96336.0,96324.0,0.07845492]
[1739992937278,0.00471293,96335.0,96325.0,0.08303363]
[1739992937516,0.207589,96345.0,96331.0,0.155711]
[1739992937759,0.01526659,96347.0,96335.0,0.155705]
[1739992937760,0.00478275,96344.0,96335.0,0.155705]
[1739992938000,0.01526659,96347.0,96325.0,0.08147258]
[1739992938230,0.00475378,96343.0,96327.0,0.207626]
[1739992938486,0.19579577,96360.0,96328.0,0.10250365]
[1739992938714,0.19579577,96350.0,96338.0,0.1557]
[1739992938948,0.000425,96347.0,96336.0,0.155704]
[1739992939185,0.15569,96346.0,96335.0,0.155705]
[1739992939409,0.000425,96347.0,96328.0,0.10250365]
[1739992939666,0.00474272,96345.0,96339.0,0.1557]
[1739992939913,0.00472166,96346.0,96328.0,0.10250365]
[1739992940152,0.19579577,96340.0,96328.0,0.10250365]
[1739992940407,0.19579577,96340.0,96333.0,0.207612]
[1739992940650,0.00471814,96339.0,96328.0,0.10250365]
[1739992940863,0.00471814,96339.0,96336.0,0.155703]
[1739992941229,0.19579577,96340.0,96314.0,0.0768]
[1739992941435,0.19579577,96333.0,96314.0,0.0768]
[1739992941784,0.155716,96329.0,96317.0,0.155734]
[1739992941997,0.207617,96331.0,96315.0,0.0499]
[1739992942198,0.19579577,96333.0,96303.0,0.0459]
[1739992942199,0.155724,96324.0,96303.0,0.0459]
[1739992942441,0.15,96332.0,96304.0,0.08303363]
[1739992942649,0.00474252,96324.0,96304.0,0.08303363]
[1739992942856,0.15,96332.0,96311.0,0.155745]
[1739992943027,0.16043701,96324.0,96308.0,0.207665]
[1739992943210,0.155724,96324.0,96313.0,0.155742]
[1739992943457,0.16044965,96324.0,96304.0,0.08303363]
[1739992944334,0.16044965,96324.0,96307.0,0.207667]
[1739992944675,0.16044965,96324.0,96306.0,0.207669]
[1739992944884,0.16044965,96324.0,96311.0,0.20766]
[1739992945347,0.16044965,96324.0,96312.0,0.155742]
[1739992945566,0.16044965,96324.0,96313.0,0.155741]
[1739992945774,0.16044965,96324.0,96307.0,0.155751]
[1739992945989,0.16044965,96324.0,96304.0,0.08303363]
[1739992947498,0.40702465,96324.0,96304.0,0.08303363]
[1739992947693,0.43569065,96324.0,96304.0,0.08303363]
[1739992947902,0.38899065,96324.0,96304.0,0.08303363]
[1739992948119,0.35200765,96324.0,96304.0,0.08303363]
[1739992948794,0.16044965,96324.0,96304.0,0.08303363]
[1739992949272,0.51969665,96324.0,96304.0,0.08303363]
[1739992949482,0.73742467,96324.0,96295.0,0.0829]
[1739992949687,0.73742467,96324.0,96291.0,0.0462]
[1739992949688,0.75196552,96324.0,96291.0,0.0462]
[1739992949894,0.207689,96298.0,96288.0,0.0829]
[1739992950106,0.207688,96299.0,96288.0,0.0829]
[1739992950325,0.207688,96299.0,96280.0,0.0462]
[1739992950326,0.00461049,96297.0,96280.0,0.0462]
[1739992950537,0.19579577,96293.0,96280.0,0.0462]
[1739992950741,0.155787,96285.0,96280.0,0.0462]
[1739992951114,0.00493976,96284.0,96280.0,0.0462]
[1739992951732,0.155793,96281.0,96280.0,0.00043455]
[1739992952102,0.00489896,96281.0,96280.0,0.00043455]
[1739992952607,0.00489755,96281.0,96280.0,0.00043455]
[1739992952833,0.155793,96281.0,96280.0,0.00043455]
[1739992953049,0.00489755,96281.0,96280.0,0.00043455]
[1739992953268,0.155793,96281.0,96280.0,0.00043455]
[1739992953457,0.16069055,96281.0,96280.0,0.00043455]
[1739992953629,0.00489755,96281.0,96280.0,0.00043455]
[1739992953901,0.00497764,96281.0,96280.0,0.00043455]
[1739992954074,0.155793,96282.0,96280.0,0.00043455]
[1739992954221,0.155793,96281.0,96280.0,0.00043455]
[1739992955101,0.207701,96292.0,96280.0,0.00043455]
[1739992955327,0.155792,96282.0,96280.0,0.00043455]
[1739992955577,0.155793,96281.0,96280.0,0.00043455]
[1739992956217,0.26551847,96293.0,96280.0,0.00043455]
[1739992956421,0.207701,96292.0,96280.0,0.00043455]
[1739992956647,0.155788,96285.0,96280.0,0.00043455]
[1739992956868,0.01881172,96298.0,96280.0,0.00043455]
[1739992957106,0.155774,96293.0,96281.0,0.0797]
[1739992957343,0.155777,96292.0,96281.0,0.0797]
[1739992957579,0.37846986,96294.0,96281.0,0.0797]
[1739992957814,0.155787,96285.0,96281.0,0.0797]
[1739992958035,0.15578,96290.0,96281.0,0.0797]
[1739992958270,0.19579577,96291.0,96281.0,0.0797]
[1739992958491,0.155781,96289.0,96281.0,0.0797]
[1739992959005,0.19579577,96291.0,96281.0,0.0797]
[1739992959269,0.02066026,96308.0,96287.0,0.08303363]
[1739992959498,0.155758,96304.0,96289.0,0.15578]
[1739992959737,0.155762,96301.0,96290.0,0.155779]
[1739992959957,0.02066026,96308.0,96287.0,0.29074363]
[1739992959958,0.155766,96299.0,96287.0,0.08303363]
[1739992960195,0.155766,96299.0,96288.0,0.155782]
[1739992960426,0.19579577,96300.0,96287.0,0.08303363]
[1739992960854,0.155775,96293.0,96287.0,0.08303363]
[1739992961056,0.207701,96292.0,96287.0,0.08303363]
[1739992961229,0.207698,96294.0,96287.0,0.08303363]
[1739992961436,0.19579577,96300.0,96287.0,0.08303363]
[1739992961636,0.155774,96293.0,96287.0,0.08303363]
[1739992962408,0.01881172,96298.0,96287.0,0.08303363]
[1739992962639,0.207703,96291.0,96287.0,0.08303363]
[1739992962842,0.155779,96290.0,96287.0,0.08303363]
[1739992963059,0.2077,96293.0,96287.0,0.08303363]
[1739992963261,0.155775,96293.0,96287.0,0.08303363]
[1739992963461,0.155779,96291.0,96287.0,0.08303363]
[1739992963731,0.01881172,96298.0,96278.0,0.00085]
[1739992963939,0.155793,96281.0,96278.0,0.00085]
[1739992964346,0.155793,96281.0,96280.0,0.00128455]
[1739992965601,0.37583931,96281.0,96280.0,0.00128455]
[1739992965918,0.37583931,96281.0,96226.0,0.0008492]
[1739992965919,0.155842,96251.0,96250.0,0.0783]
[1739992966125,0.19579577,96260.0,96257.0,0.00013031]
[1739992966365,0.207774,96258.0,96257.0,0.00013031]
[1739992966626,0.19579577,96267.0,96257.0,0.00013031]
[1739992966852,0.202179,96266.0,96257.0,0.00013031]
[1739992967057,0.19579577,96267.0,96257.0,0.00013031]
[1739992967499,0.207764,96263.0,96257.0,0.00013031]
[1739992967686,0.145791,96258.0,96257.0,0.00013031]
[1739992968646,0.155829,96260.0,96257.0,0.00013031]
[1739992968848,0.155829,96259.0,96257.0,0.00013031]
[1739992969063,0.20776,96265.0,96257.0,0.00013031]
[1739992969270,0.155829,96259.0,96257.0,0.00013031]
[1739992969476,0.207761,96264.0,96257.0,0.00013031]
[1739992969719,0.155821,96265.0,96257.0,0.00013031]
[1739992969871,0.17050848,96266.0,96257.0,0.00013031]
[1739992970071,0.15583,96259.0,96257.0,0.00013031]
[1739992970283,0.207759,96265.0,96257.0,0.00013031]
[1739992970485,0.155821,96265.0,96257.0,0.00013031]
[1739992970712,0.17050848,96266.0,96257.0,0.00013031]
[1739992970938,0.155831,96258.0,96257.0,0.00013031]
[1739992971526,0.15583,96259.0,96257.0,0.00013031]
[1739992971735,0.155831,96258.0,96257.0,0.00013031]
[1739992973885,0.17050848,96266.0,96257.0,0.00013031]
[1739992974185,0.001,96258.0,96257.0,0.00013031]
[1739992974835,0.156831,96258.0,96257.0,0.00013031]
[1739992975036,0.001,96258.0,96257.0,0.00013031]
[1739992975624,0.155831,96258.0,96257.0,0.00013031]
[1739992975822,0.207771,96260.0,96257.0,0.00213031]
[1739992975996,0.155831,96258.0,96257.0,0.00013031]
[1739992976449,0.156831,96258.0,96257.0,0.00213031]
[1739992976643,0.156831,96258.0,96257.0,0.00298091]
[1739992977070,0.155831,96258.0,96257.0,0.00298091]
[1739992977189,0.156831,96258.0,96257.0,0.00298091]
[1739992977834,0.156831,96258.0,96257.0,0.00098091]
[1739992978258,0.591791,96258.0,96257.0,0.00098091]
[1739992978412,0.376326,96258.0,96257.0,0.00098091]
[1739992978627,0.375326,96258.0,96257.0,0.00098091]
[1739992979187,0.44761318,96258.0,96257.0,0.00098091]
[1739992979683,0.44661318,96258.0,96257.0,0.00098091]
[1739992979888,0.44761318,96258.0,96257.0,0.00098091]
[1739992980174,0.155865,96237.0,96236.0,0.0751]
[1739992980406,0.155865,96237.0,96236.0,0.07523041]
[1739992982114,0.001,96237.0,96236.0,0.08023041]
[1739992982538,0.155862,96239.0,96236.0,0.07523041]
[1739992982742,0.207805,96244.0,96236.0,0.07523041]
[1739992982882,0.002,96237.0,96236.0,0.07523041]
[1739992983252,0.207811,96242.0,96236.0,0.07523041]
[1739992983432,0.155859,96241.0,96236.0,0.07523041]
[1739992983647,0.207808,96243.0,96236.0,0.07523041]
[1739992983848,0.22649508,96241.0,96236.0,0.07523041]
[1739992984074,0.155865,96237.0,96236.0,0.07523041]
[1739992984274,0.155863,96238.0,96236.0,0.07523041]
[1739992984501,0.155861,96240.0,96236.0,0.07523041]
[1739992984700,0.01881552,96241.0,96236.0,0.07523041]
[1739992984926,0.15586,96240.0,96236.0,0.07523041]
[1739992985079,0.15,96245.0,96236.0,0.07523041]
[1739992985486,0.155865,96237.0,96236.0,0.07523041]
[1739992985712,0.155865,96237.0,96236.0,0.00013041]
[1739992986701,1.106073,96237.0,96236.0,0.00013041]
[1739992986902,0.734494,96237.0,96236.0,0.00013041]
[1739992987318,0.80991466,96237.0,96236.0,0.00013041]
[1739992987855,0.82645551,96237.0,96236.0,0.00013041]
[1739992988195,0.94524533,96237.0,96236.0,0.00013041]
[1739992988392,0.95024533,96237.0,96236.0,0.00013041]
[1739992988593,0.94724533,96237.0,96236.0,0.00013041]
[1739992988792,0.95424533,96237.0,96236.0,0.00013041]
[1739992989242,0.84474168,96237.0,96236.0,0.00013041]
[1739992989402,0.83774168,96237.0,96236.0,0.00100001]
[1739992989607,0.85174168,96237.0,96236.0,0.00100001]
[1739992989806,0.84474168,96237.0,96236.0,1e-08]
[1739992990068,0.41611268,96237.0,96236.0,0.00085061]
[1739992990486,0.40911268,96237.0,96236.0,0.00085061]
[1739992990904,2.71776568,96237.0,96236.0,0.00085061]
[1739992991097,2.72596568,96237.0,96236.0,0.00085061]
[1739992991542,0.41731268,96237.0,96236.0,0.00085061]
[1739992991746,0.41511268,96237.0,96236.0,0.00085061]
[1739992991952,0.155905,96212.0,96211.0,0.08303363]
[1739992992183,0.155907,96211.0,96210.0,0.0789]
[1739992993097,0.155931,96196.0,96195.0,0.20963233]
[1739992993941,0.155931,96196.0,96195.0,0.21006704]
[1739992996899,0.19579577,96205.0,96195.0,0.21006704]
[1739992997130,0.01629083,96222.0,96216.0,0.0774]
[1739992997333,0.01629083,96222.0,96219.0,0.08303363]
[1739992997533,0.15,96226.0,96219.0,0.08303363]
[1739992997753,0.15,96228.0,96219.0,0.08303363]
[1739992997867,0.15,96226.0,96219.0,0.08303363]
[1739992998103,0.155892,96220.0,96219.0,0.08303363]
[1739992998299,0.305892,96220.0,96219.0,0.08303363]
[1739992998505,0.155908,96210.0,96209.0,0.08303363]
[1739992998729,0.19579577,96219.0,96209.0,0.08303363]
[1739992998931,0.155905,96212.0,96209.0,0.08303363]
[1739992999138,0.155908,96210.0,96209.0,0.08303363]
[1739992999567,0.207876,96212.0,96208.0,0.0762]
[1739992999771,0.30591,96209.0,96208.0,0.0762]
[1739993000033,0.30591,96209.0,96205.0,0.0487]
[1739993000034,0.305915,96206.0,96205.0,0.0487]
[1739993000184,0.478205,96206.0,96205.0,0.0487]
[1739993000395,0.478605,96206.0,96205.0,0.0487]
[1739993000591,0.305915,96206.0,96205.0,0.0487]
[1739993000796,0.15,96206.0,96205.0,0.0487]
[1739993000971,0.305915,96206.0,96205.0,0.0487]
[1739993001713,0.406775,96206.0,96205.0,0.0487]
[1739993002043,0.15,96205.0,96195.0,0.20941764]
[1739993002249,0.155931,96196.0,96195.0,0.20941764]
[1739993003864,0.155931,96197.0,96195.0,0.20941764]
[1739993004070,0.15,96204.0,96195.0,0.20941764]
[1739993004531,0.15,96204.0,96195.0,0.21141764]
[1739993004764,0.15,96204.0,96195.0,0.20941764]
[1739993005183,0.207893,96203.0,96195.0,0.21141764]
[1739993005385,0.155925,96201.0,96195.0,0.20941764]
[1739993005627,0.155925,96200.0,96195.0,0.20941764]
[1739993005838,0.15592,96203.0,96195.0,0.20941764]
[1739993006048,0.152,96204.0,96195.0,0.20941764]
[1739993006468,0.151,96204.0,96195.0,0.20941764]
[1739993007090,0.306919,96204.0,96195.0,0.20941764]
[1739993007223,0.15,96204.0,96195.0,0.20941764]
[1739993007440,0.155923,96201.0,96195.0,0.20941764]
[1739993007642,0.15,96204.0,96195.0,0.20941764]
[1739993007878,0.305918,96204.0,96195.0,0.20941764]
[1739993008176,0.305918,96204.0,96203.0,0.15592]
[1739993008177,0.001,96204.0,96203.0,0.15592]
[1739993008547,0.001,96204.0,96203.0,0.0804]
[1739993008900,0.305894,96219.0,96203.0,0.23632]
[1739993009083,0.15,96219.0,96205.0,0.08303363]
[1739993009280,0.305895,96219.0,96205.0,0.08303363]
[1739993009483,0.15,96219.0,96205.0,0.08303363]
[1739993009727,0.15,96218.0,96205.0,0.29092263]
[1739993009980,0.15,96218.0,96206.0,0.1269]
[1739993010425,0.01628748,96231.0,96218.0,0.1268]
[1739993010600,0.19579577,96240.0,96227.0,0.08303363]
[1739993010795,0.187112,96238.0,96227.0,0.08303363]
[1739993011097,0.15,96237.0,96227.0,0.08303363]
[1739993011315,0.01628569,96242.0,96227.0,0.08303363]
[1739993011510,0.155861,96240.0,96227.0,0.08303363]
[1739993011712,0.15,96241.0,96227.0,0.08303363]
[1739993011917,0.15986,96240.0,96227.0,0.08303363]
[1739993012211,0.15586,96240.0,96227.0,0.08303363]
[1739993012391,0.007,96237.0,96227.0,0.08303363]
[1739993012801,0.003,96237.0,96227.0,0.08303363]
[1739993013182,0.155866,96236.0,96227.0,0.08303363]
[1739993013392,0.003,96237.0,96227.0,0.08303363]
[1739993013635,0.0054254,96240.0,96227.0,0.08303363]
[1739993013840,0.155865,96237.0,96227.0,0.08303363]
[1739993014620,0.004,96237.0,96227.0,0.08303363]
[1739993014825,0.15587,96234.0,96227.0,0.08303363]
[1739993015250,0.207822,96236.0,96227.0,0.08303363]
[1739993015590,0.004,96237.0,96227.0,0.08303363]
[1739993015810,0.0004254,96240.0,96227.0,0.08303363]
[1739993016042,0.003,96234.0,96227.0,0.08303363]
[1739993016903,0.155883,96226.0,96225.0,0.08]
[1739993018025,0.207838,96229.0,96225.0,0.08]
[1739993018026,0.211821,96237.0,96225.0,0.08]
[1739993018261,0.207828,96233.0,96225.0,0.08]
[1739993018491,0.002,96234.0,96225.0,0.08]
[1739993018695,0.16628486,96244.0,96225.0,0.08]
[1739993018877,0.15013002,96241.0,96225.0,0.081]
[1739993019084,0.155878,96229.0,96225.0,0.08]
[1739993019312,0.15588,96228.0,96225.0,0.08]
[1739993019576,0.155883,96226.0,96225.0,0.08]
[1739993020392,0.155883,96226.0,96215.0,0.0774]